Cogmind - Beta 15 @@@ ROGUE MODE // 2025.10.21 @ 04:54:17 // Winter2022/Polymind Player: NQH Result: Destroyed by H-61 Shepherd with Heavy Assault Cannon Performance ------------- Evolutions (2) 1000 Regions Visited (3) 600 Robots Destroyed (7) 35 Value Destroyed (308) 308 Prototype IDs (0) 0 Alien Tech Used (0) 0 Bonus (1290) 1290 TOTAL SCORE: 3113 Bonus ------- Polymind Skill 1090 Pacifist 200 Cogmind --------- Core Integrity 0/550 Matter 0/0 Energy 100/100 System Corruption 5% Temperature Cool (0) Movement Core (50) Location -8/Materials Parts ------- > --- POWER (1) -------- (None) > --- PROPULSION (2) --- (None) > --- UTILITY (3) ------ (None) > --- WEAPON (2) ------- (None) > --- INVENTORY (0) ---- (None) Peak State ------------ > --- POWER ------------ Improved Ion Engine > --- PROPULSION ------- Light Treads Light Treads > --- UTILITY ---------- Heat Sink Heat Sink Light Armor Plating > --- WEAPON ----------- Beam Rifle Heavy Assault Rifle > --- INVENTORY -------- (None) [Rating: 11] Favorites ----------- Power Ion Engine Engine Ion Engine Propulsion Aluminum Leg Treads Light Treads Leg Aluminum Leg Wheel Compact Wheel Hover Unit Hover Unit Utility Heat Sink Device Heat Sink Storage Small Storage Unit Processor Visual Processing Unit Protection Light Armor Plating Weapon Small Laser Energy Gun Small Laser Ballistic Gun Heavy Assault Rifle Build | -11 -10 -9 -8 ------- Run | Yrd Mat Mat Mat Slots Evolved . | . . . . Power . | . . . . Propulsion . | . . . . Utility . | . . . . Weapon . | . . . . Parts Attached . | . . . . Power . | . . . . Engine . | . . . . Core . | . . . . Reactor . | . . . . Propulsion . | . . . . Treads . | . . . . Leg . | . . . . Wheel . | . . . . Hover . | . . . . Flight . | . . . . Utility . | . . . . Device . | . . . . Storage . | . . . . Processor . | . . . . Hackware . | . . . . Protection . | . . . . Artifact . | . . . . Weapon . | . . . . Energy Gun . | . . . . Energy Cannon . | . . . . Ballistic Gun . | . . . . Ballistic Cannon . | . . . . Launcher . | . . . . Special Weapon . | . . . . Impact Weapon . | . . . . Slashing Weapon . | . . . . Piercing Weapon . | . . . . Special Melee Weapon . | . . . . Unidentified Prototypes . | . . . . Parts Lost 9 | . . 2 7 Power 1 | . . . 1 Propulsion 2 | . . . 2 Utility 3 | . . 1 2 Weapon 3 | . . 1 2 Highest Loss Streak 7 | . . 2 7 To Critical Strikes . | . . . . Average Backups . | . . . . Power . | . . . . Propulsion . | . . . . Utility . | . . . . Weapon . | . . . . Tool/Special . | . . . . Unused Backups 1 | . 1 . . Power . | . . . . Propulsion 1 | . 1 . . Utility . | . . . . Weapon . | . . . . Tool/Special . | . . . . Average Slot Usage (%) 64 | . 71 69 29 Engine 11 | . 15 10 3 Treads 5 | . . 10 7 Leg 10 | . 13 10 . Wheel 3 | . 8 . . Hover 3 | . 8 . . Device 12 | . 10 15 9 Storage 1 | . 4 . . Processor 1 | . 4 . . Protection 2 | . . 5 3 Energy Gun 7 | . 6 10 1 Ballistic Gun 2 | . . 5 4 Peak Build Rating 11 | 5 5 11 11 Average Rating 4 | 3 3 6 3 On Entrance 1 | . 5 . . Naked Turns 249 | . 103 84 62 Heaviest Build 18 | 9 9 18 18 Greatest Support 40 | 32 32 40 40 Greatest Overweight (x) 2 | . 2 . . Average Overweight (x) . | . . . . Largest Inventory Capacity 4 | 4 4 1 1 Average Capacity . | 3 1 . . Most Carried 1 | . 1 . . Average Carried . | . . . . Final Capacity 4 | 4 . . . Final Carried . | . . . . Class Distribution -------------------- 34% | Cogmind 28% | Grunt 22% | Sentry 7% | Recycler 7% | Watcher Dominant Class ---------------- Grunt | -10/Materials Sentry | -9/Materials Cogmind | -8/Materials Resources | -11 -10 -9 -8 ----------- Run | Yrd Mat Mat Mat Matter Collected 45 | . . 2 43 Remotely . | . . . . Salvage Created 375 | . . 318 57 Parts 16 | . . 15 1 Haulers Intercepted . | . . . . Recyclers Shooed . | . . . . Parts Field Recycled . | . . . . Retrieved Matter . | . . . . Parts Self-Destructed . | . . . . Prevented . | . . . . Kills | -11 -10 -9 -8 ------- Run | Yrd Mat Mat Mat Combat Hostiles Destroyed 7 | . . 5 2 Guns 7 | . . 5 2 Classes Destroyed 2 | . . 2 . Grunt 3 | . . 2 1 Sentry 4 | . . 3 1 Best Kill Streak 2 | . . 2 2 Combat Bots Only 2 | . . 2 2 Max Kills in Single Turn 1 | . . 1 1 Gunslinging . | . . . . Exploded . | . . . . Melee . | . . . . Uniques/NPCs Destroyed . | . . . . Combat | -11 -10 -9 -8 -------- Run | Yrd Mat Mat Mat Hostile Shots Fired 151 | . 20 71 60 Missed 31 | . 7 18 6 Hits 120 | . 13 53 54 Projectile 120 | . 13 53 54 Critical Strikes 8 | . . 6 2 Damage Taken 2182 | . 158 812 1212 Core 1060 | . 143 320 597 Absorbed by Shields . | . . . . Core Remaining (%) 54 | 100 42 20 . Volleys Fired 36 | . . 24 12 Largest 2 | . . 2 2 Hottest 79 | . . 79 79 Shots Fired 50 | . . 36 14 Gun 50 | . . 36 14 Cannon . | . . . . Launcher . | . . . . Special . | . . . . Kinetic 24 | . . 12 12 Thermal 26 | . . 24 2 Explosive . | . . . . Electromagnetic . | . . . . Robot Hit Streak 7 | . . 7 7 Robot Miss Streak 3 | . . 3 2 Penetration Max . | . . . . Secondary Targets 1 | . . 1 . Max Gunslinging Chain 1 | . . 1 . Shots Hit Robots 33 | . . 26 7 Core Hits 21 | . . 14 7 Critical Kills . | . . . . Critical Parts Destroyed . | . . . . Critical Strikes 1 | . . 1 . Burn 1 | . . 1 . Melee Attacks . | . . . . Impact . | . . . . Slashing . | . . . . Piercing . | . . . . Sneak Attacks . | . . . . Combat Hostiles . | . . . . Follow-up Attacks . | . . . . Damage Inflicted 686 | . 11 468 207 Guns 509 | . . 373 136 Cannons . | . . . . Explosions . | . . . . Melee . | . . . . Ramming 177 | . 11 95 71 Kinetic 295 | . . 175 120 Thermal 214 | . . 198 16 Explosive . | . . . . Electromagnetic . | . . . . Impact . | . . . . Slashing . | . . . . Piercing . | . . . . Highest Corruption 5 | . 2 2 5 Average Corruption 2 | . 2 2 3 Corruption Purged . | . . . . Corruption Blocked . | . . . . Effects 2 | . . 1 1 Matter Fused 1 | . . . 1 Energy Discharges 1 | . . 1 . Overload Shots . | . . . . Overflow Damage . | . . . . Projectiles . | . . . . Explosions . | . . . . Melee . | . . . . Knockbacks 1 | . . 1 . Impact 1 | . . 1 . Kinetic . | . . . . Secondary . | . . . . Self-Inflicted Damage 77 | . 5 41 31 Shots . | . . . . Rammed 55 | . 2 28 25 Targets Rammed 55 | . 2 28 25 Kicked . | . . . . Crushed . | . . . . Highest Temperature 154 | . 5 154 2 Average Temperature 35 | . 3 38 2 Received Heat Transfer 633 | . 87 303 243 Siege Activations . | . . . . Martial Activations . | . . . . Shielding Activations . | . . . . Robots Disrupted . | . . . . Combat Hostiles . | . . . . Robots Corrupted . | . . . . Combat Hostiles . | . . . . Parts Fried . | . . . . Impact Corruptions . | . . . . Robots Melted . | . . . . Combat Hostiles . | . . . . Parts Melted . | . . . . Heat Transferred 570 | . . 533 37 Parts Sabotaged . | . . . . Parts Stolen . | . . . . Parts Stripped . | . . . . Power Chain Reactions . | . . . . Alert | -11 -10 -9 -8 ------- Run | Yrd Mat Mat Mat Maximum Alert Level . | . . . . Low Security (%) 100 | 100 100 100 100 Level 1 . | . . . . Level 2 . | . . . . Level 3 . | . . . . Level 4 . | . . . . Level 5 . | . . . . High Security . | . . . . Max Security . | . . . . Peak Influence 70 | . 20 70 40 Initial 8 | . . 3 8 Average 11 | . 1 27 7 Influence Increases 237 | . 32 155 50 Destroy 0b10 Robot/C 140 | . . 100 40 Destroy Leader 50 | . . 40 10 Successful Hack 2 | . 2 . . Partial Spotted 15 | . . 15 . Lose Combat Pursuer 30 | . 30 . . Influence Decreases 237 | . 22 145 70 Entered New Map 19 | . . 7 12 Time Decay 153 | . 22 113 18 Lost Part 60 | . . 20 40 Miscellaneous 5 | . . 5 . Squads Dispatched 3 | . 1 1 1 Investigation . | . . . . Extermination . | . . . . Reinforcement 3 | . 1 1 1 Assault . | . . . . Garrison . | . . . . Intercept . | . . . . Searches Triggered . | . . . . Construction Impeded . | . . . . Haulers Reinforced . | . . . . Active Scanning Responses . | . . . . Cargo Convoy Interrupts . | . . . . Stealth | -11 -10 -9 -8 --------- Run | Yrd Mat Mat Mat Distress Signals 5 | . . 5 . Communications Jammed . | . . . . Distress Signals . | . . . . Times Spotted 39 | . 15 15 9 Peak Tracking Total 8 | . 8 6 4 Tactical Retreats 1 | . 1 . . Traps | -11 -10 -9 -8 ------- Run | Yrd Mat Mat Mat Traps Triggered 2 | . 1 . 1 Indirectly . | . . . . Trap Hack Attempts . | . . . . Triggered . | . . . . Disarmed . | . . . . Reprogrammed . | . . . . Reused . | . . . . Traps Extracted . | . . . . Installed . | . . . . Triggered . | . . . . Machines | -11 -10 -9 -8 ---------- Run | Yrd Mat Mat Mat Machines Disabled . | . . . . Max in Single Turn . | . . . . Machines Repaired . | . . . . Machines Dismantled . | . . . . Machines Sabotaged . | . . . . Overloaded Fab Kills . | . . . . Hacking | -11 -10 -9 -8 --------- Run | Yrd Mat Mat Mat Machines Accessed 1 | . 1 . . Terminals 1 | . 1 . . Fabricators . | . . . . Repair Stations . | . . . . Recycling Units . | . . . . Scanalyzers . | . . . . Garrison Access . | . . . . Total Hacks 1 | . 1 . . Successful 1 | . 1 . . Failed . | . . . . Catastrophic . | . . . . Database Lockouts . | . . . . Manual . | . . . . Terminals 1 | . 1 . . Fabricators . | . . . . Repair Stations . | . . . . Recycling Units . | . . . . Scanalyzers . | . . . . Garrison Access . | . . . . Terminal Hacks 1 | . 1 . . Record 1 | . 1 . . Fabricator Hacks . | . . . . Repair Station Hacks . | . . . . Recycling Unit Hacks . | . . . . Scanalyzer . | . . . . Garrison Access Hacks . | . . . . Unauthorized Hacks . | . . . . Terminals . | . . . . Fabricators . | . . . . Repair Stations . | . . . . Recycling Units . | . . . . Scanalyzers . | . . . . Garrison Access . | . . . . Data Cores Recovered . | . . . . Used . | . . . . Hacking Detections . | . . . . Full Trace Events . | . . . . Feedback Events . | . . . . Feedback Blocked . | . . . . Robot Schematics Acquired . | . . . . Robots Built . | . . . . Authchips . | . . . . Time . | . . . . Total Robot Build Rating . | . . . . Part Schematics Acquired . | . . . . Parts Built . | . . . . Authchips . | . . . . Time . | . . . . Total Part Build Rating . | . . . . Parts Repaired . | . . . . Time . | . . . . Parts Recycled . | . . . . Recycled Matter . | . . . . Retrieved Matter . | . . . . Retrieved Components . | . . . . Parts Scanalyzed . | . . . . Part Schematics Acquired . | . . . . Parts Damaged . | . . . . Bothacking | -11 -10 -9 -8 ------------ Run | Yrd Mat Mat Mat Used RIF Installer . | . . . . Robots Hacked 6 | . 3 2 1 Non-combat 2 | . 2 . . Combat 4 | . 1 2 1 Robot Hacks Applied 9 | . 5 2 2 map_route 2 | . 2 . . mark_security 2 | . 2 . . find_shortcuts 4 | . 1 2 1 find_garrison 1 | . . . 1 Relay Couplers Released . | . . . . Fabnet Peak Effective % . | . . . . Robots Rewired . | . . . . Allies Hacked . | . . . . Hacks Repelled . | . . . . Allies | -11 -10 -9 -8 -------- Run | Yrd Mat Mat Mat Total Allies . | . . . . Largest Group . | . . . . Highest-Rated Group . | . . . . Highest-Rated Ally . | . . . . Total Orders . | . . . . Ally Attacks . | . . . . Total Damage . | . . . . Kills . | . . . . Allies Corrupted . | . . . . Allies Melted . | . . . . Intel | -11 -10 -9 -8 ------- Run | Yrd Mat Mat Mat Active Infowar (turns) 54 | . 54 . . Optics 54 | . 54 . . Robot Analysis Total 4 | 1 2 1 . Derelict Logs Recovered . | . . . . Drone Launches . | . . . . Drone Recoveries . | . . . . Exploration | -11 -10 -9 -8 ------------- Run | Yrd Mat Mat Mat Turns Passed 784 | 53 340 294 97 Spaces Moved 755 | 65 396 215 79 Core 374 | 24 168 109 73 Treads 66 | . . 60 6 Legs 122 | . 76 46 . Wheels 96 | 41 55 . . Hover 97 | . 97 . . Flight . | . . . . Fastest Speed 50 | 50 50 50 50 Average Speed 78 | 81 72 95 58 Slowest Speed 160 | 100 150 160 160 Overloaded Moves . | . . . . Propulsion Burnouts . | . . . . Robots Hopped . | . . . . Potential Cave-ins . | . . . . Cave-ins Triggered . | . . . . Exploration Rate (%) 22 | 4 46 27 12 Regions Visited 3 Branch Regions . Pre-discovered Areas . | . . . . Known Exits Taken . | . . . . Unknown Exits Taken 3 | 1 1 1 . Scrap Searched . | . . . . Spaces Dug . | . . . . Terrain Destroyed . | . . . . Melee . | . . . . Projectile . | . . . . AOE . | . . . . Terrain Rammed . | . . . . Walls Destroyed . | . . . . Machines Disabled . | . . . . Actions | -11 -10 -9 -8 --------- Run | Yrd Mat Mat Mat Total 896 | 64 450 266 116 Wait 51 | . 51 . . Move 752 | 64 395 214 79 Hop . | . . . . Pick Up 1 | . 1 . . Fast Attach . | . . . . Attach . | . . . . Detach . | . . . . Swap . | . . . . Drop 1 | . 1 . . Fire 36 | . . 24 12 Melee . | . . . . Ram 55 | . 2 28 25 Kick . | . . . . Crush . | . . . . Escape Stasis . | . . . . Rewire . | . . . . Trap . | . . . . Miscellaneous . | . . . . Route ------- -11/Scrapyard -10/Materials (discovered 2 exits: [*Mat] / [Min]) -9/Materials -8/Materials History --------- Turn | Location | Event 4 | -11/Scrapyard | Discovered new exit (range 16) 54 | -11/Scrapyard | Entered Materials 126 | -10/Materials | Discovered new exit (range 30) 386 | -10/Materials | Discovered new exit (range 16) 388 | -10/Materials | Core integrity fell below 50% 394 | -10/Materials | Entered another Materials area 576 | -9/Materials | Core integrity fell below 50% 636 | -9/Materials | Discovered new exit (range 9) 688 | -9/Materials | Entered another Materials area 764 | -8/Materials | Core integrity fell below 50% 777 | -8/Materials | Core integrity fell below 20% 785 | -8/Materials | Destroyed by H-61 Shepherd with Heavy Assault Cannon Last Messages --------------- 00758_ U-05 Engineer works on Integration Channel. 00759_ K-01 Serf collects debris. 00760_ Penetrated by Slug. 00760_ Hvy. Assault Rifle destroyed. 00760_ Heat Sink destroyed. 00760_ Lgt. Treads destroyed. 00760_ Critical hit (Blast). 00760_ Knocked back. 00761_ Released control of Y-45 Defender. 00761_ Slammed into H-61 Shepherd. 00761_ Critical hit (Burn: +37). 00762_ K-01 Serf collects debris. 00762_ Slammed into G-47 Trooper. 00763_ Knocked back. 00775_ Slammed into Y-45 Defender. 00776_ Destabilizing: Core damaged (-22). 00777_ Slammed into Y-45 Defender. 00782_ Destabilizing: System corrupted (+2). 00783_ Slammed into Y-45 Defender. Map ----- +----------------------------------------------------+ | ??????????????# ???????????? | | ??????????????# % ????????????? | | ?????????#########/### #####?????????????????? | | ?????????# % [ ## ##?????????????????????? | | ?????????# % % %%## #??????????????????????? | | ?????????# "%"" %% # #??????????????????????? | | ?????????# " %"" ## #??????????????????????? | | ?????????# % ## #??????????????????????? | | ?????????# ##H #??????????????????????? | | ?????????# """T""" ## ##?????????????????????? | | ?????????############# = #?????????????????????? | | ????????? #?????????????????????? | | ????????? +?????????????????????? | | ????????? #?????????????????????? | | ??????????######+##### #?????????????????????? | | ?????????????????????##g ##?????????????????????? | | ??????????????????????# t#??????????????????????? | | ??????????????????????# #??????????????????????? | | ??????????????????????# #??????????????????????? | | ??????????????????????# #??????????????????????? | | ??????????????????????# #??????????????????????? | | ?????????????????????## ##?????????????????????? | | ?????????????????????# #?????????????????????? | | ????????????????????## % #?????????????????????? | | ????????????????????+ %%%%#?????????????????????? | | ????????????????????## %%@ #?????????????????????? | | ?????????????????????# Y #?????????????????????? | | ?????????????????????#######?????????????????????? | | ?????????????????????????????????????????????????? | | ?????????????????????????????????????????????????? | | ?????????????????????????????????????????????????? | | ?????????????????????????????????????????????????? | | ?????????????????????????????????????????????????? | | ?????????????????????????????????????????????????? | | ?????????????????????????????????????????????????? | | ?????????????????????????????????????????????????? | | ?????????????????????????????????????????????????? | | ?????????????????????????????????????????????????? | | ?????????????????????????????????????????????????? | | ?????????????????????????????????????????????????? | | ?????????????????????????????????????????????????? | | ?????????????????????????????????????????????????? | | ?????????????????????????????????????????????????? | | ?????????????????????????????????????????????????? | | ?????????????????????????????????????????????????? | | ?????????????????????????????????????????????????? | | ?????????????????????????????????????????????????? | | ?????????????????????????????????????????????????? | | ?????????????????????????????????????????????????? | | ?????????????????????????????????????????????????? | +----------------------------------------------------+ Best States ------------- Heat Dissipation 36 Energy Generation 17 Energy Capacity 215 Matter Stores 97 Matter Capacity 100 Sight Range 18 Terrain Scan Density 10 Armor Coverage 150 Resistance: EX 50 Resistance: I 25 Evasion (%) 55 Recoil Reduction 2 Item Schematics ----------------- None Robot Schematics ------------------ None Fabricated ------------ Nothing Repaired ---------- Nothing Alien Tech Used ----------------- None Achievements -------------- Armchair Analyst Challenges ------------ None Polymind | -11 -10 -9 -8 ---------- Run | Yrd Mat Mat Mat Hosts 7 | 1 3 2 1 Combat Hostiles 4 | . 1 2 1 Allies . | . . . . Unique Host Classes 4 | 1 2 1 . Average Host Suspicion 71 | 7 71 78 100 Unsuspicious Activity 32 | 2 19 11 . Returns to Shadow . | . . . . Fuzzy Dispatches . | . . . . Protomatter Created 26 | . . 11 15 Used 105 | 5 39 38 23 Decayed . | . . . . Highest Spend 23 | 5 15 23 23 Top 5 Hosts by Kills: Y-45 Defender (-9/Materials: 4) Y-45 Defender (-8/Materials: 2) G-34 Mercenary (-9/Materials: 1) Game ------ Seed TargetingTargetDrillbomb Manual? 0 Play Time 00:08:36 Cumulative 36.5 hours Start 2025.10.21 @ 04:46:32 End 2025.10.21 @ 04:54:17 Sessions 1 Manual Loads 0 Difficulty Rogue Special Mode Winter2022/Polymind Game No. 141 Rogue 141 Adventurer 0 Explorer 0 Win Type - Total 0 Types 0/0/0/0/0/0/0/0/0/0 Lore% 11 Gallery% 32 Achievement% 31 Wizard Run 0 Options --------- Layout 1 ASCII 0 Keyboard 1 Movement Vi Keybinds 0 Fullscreen 1 Font 16/SmallcapsGlow Map View 55x38 Zoom Use 1% Tactical HUD 1 Map Filters NONE Filters NONE Steam 1 RUN: 3ab79f4c-e044-452b-8e16-5baf7726e0e2